[Event "Championnat d'Europe Rapide"]
[Date "2024.12.07"]
[White "Djukic, Nikola"]
[Black "Horvath, Dominik"]
[WhiteElo "2493"]
[BlackElo "2542"]
[Round "4.21"]
[Result "0-1"]
[TimeControl "900+10"]

1. e4 {[%emt 00:00:04] [%clk 00:15:16]} e5 {[%emt 00:00:12] [%clk 00:15:20]} 2.
Nf3 {[%emt 00:00:01] [%clk 00:15:24]} Nc6 {[%emt 00:00:02] [%clk 00:15:28]} 3.
Bb5 {[%emt 00:00:03] [%clk 00:15:31]} a6 {[%emt 00:00:02] [%clk 00:15:36]} 4.
Ba4 {[%emt 00:00:01] [%clk 00:15:39]} Nge7 {[%emt 00:00:02] [%clk 00:15:45]} 5.
c3 {[%emt 00:00:05] [%clk 00:15:44]} Ng6 {[%emt 00:00:01] [%clk 00:15:53]} 6. d4
{[%emt 00:00:13] [%clk 00:15:41]} exd4 {[%emt 00:00:02] [%clk 00:16:01]} 7. cxd4
{[%emt 00:00:03] [%clk 00:15:48]} Bb4+ {[%emt 00:00:01] [%clk 00:16:10]} 8. Bd2
{[%emt 00:01:13] [%clk 00:14:46]} O-O {[%emt 00:00:04] [%clk 00:16:16]} 9. Bxc6
{[%emt 00:01:09] [%clk 00:13:47]} Bxd2+ {[%emt 00:00:03] [%clk 00:16:23]} 10.
Qxd2 {[%emt 00:00:03] [%clk 00:13:54]} dxc6 {[%emt 00:00:42] [%clk 00:15:50]}
11. O-O {[%emt 00:00:05] [%clk 00:14:00]} Bg4 {[%emt 00:02:45] [%clk 00:13:15]}
12. Ne1 {[%emt 00:00:34] [%clk 00:13:36]} Qh4 {[%emt 00:02:22] [%clk 00:11:03]}
13. f4 {[%emt 00:00:52] [%clk 00:12:53]} f5 {[%emt 00:01:54] [%clk 00:09:20]}
14. e5 {[%emt 00:00:13] [%clk 00:12:50]} Rad8 {[%emt 00:00:02] [%clk 00:09:28]}
15. Nc3 {[%emt 00:00:10] [%clk 00:12:50]} Rd7 {[%emt 00:00:23] [%clk 00:09:15]}
16. Nc2 {[%emt 00:00:30] [%clk 00:12:31]} Rfd8 {[%emt 00:00:03] [%clk 00:09:21]}
17. Qf2 {[%emt 00:01:01] [%clk 00:11:39]} Qxf2+ {[%emt 00:01:59] [%clk
00:07:33]} 18. Rxf2 {[%emt 00:00:01] [%clk 00:11:47]} Nf8 {[%emt 00:00:14] [%clk
00:07:29]} 19. Ne3 {[%emt 00:00:09] [%clk 00:11:48]} Rxd4 {[%emt 00:00:44] [%clk
00:06:56]} 20. h3 {[%emt 00:00:01] [%clk 00:11:57]} Bh5 {[%emt 00:00:10] [%clk
00:06:57]} 21. Nxf5 {[%emt 00:00:02] [%clk 00:12:04]} Rd3 {[%emt 00:00:05] [%clk
00:07:01]} 22. Re1 {[%emt 00:02:08] [%clk 00:10:06]} Bf7 {[%emt 00:01:02] [%clk
00:06:10]} 23. Ne3 {[%emt 00:00:20] [%clk 00:09:56]} g6 {[%emt 00:00:09] [%clk
00:06:11]} 24. g4 {[%emt 00:00:43] [%clk 00:09:22]} Nd7 {[%emt 00:01:02] [%clk
00:05:19]} 25. Nf1 {[%emt 00:02:55] [%clk 00:06:38]} Re8 {[%emt 00:00:21] [%clk
00:05:08]} 26. Rfe2 {[%emt 00:00:14] [%clk 00:06:33]} Be6 {[%emt 00:00:32] [%clk
00:04:47]} 27. Re3 {[%emt 00:01:00] [%clk 00:05:43]} Rxe3 {[%emt 00:01:42] [%clk
00:03:14]} 28. Nxe3 {[%emt 00:00:02] [%clk 00:05:51]} Bf7 {[%emt 00:00:03] [%clk
00:03:22]} 29. Rd1 {[%emt 00:00:13] [%clk 00:05:48]} Re7 {[%emt 00:00:21] [%clk
00:03:11]} 30. Ne4 {[%emt 00:00:05] [%clk 00:05:53]} Kg7 {[%emt 00:00:01] [%clk
00:03:20]} 31. a3 {[%emt 00:00:37] [%clk 00:05:26]} Nxe5 {[%emt 00:00:07] [%clk
00:03:23]} 32. fxe5 {[%emt 00:01:02] [%clk 00:04:34]} Rxe5 {[%emt 00:00:01]
[%clk 00:03:32]} 33. Rd7 {[%emt 00:00:22] [%clk 00:04:22]} Rxe4 {[%emt 00:00:03]
[%clk 00:03:39]} 34. Kf2 {[%emt 00:00:02] [%clk 00:04:30]} Kf8 {[%emt 00:00:36]
[%clk 00:03:13]} 35. Rxc7 {[%emt 00:00:02] [%clk 00:04:38]} Re7 {[%clk
00:03:22]} 36. Rc8+ {[%emt 00:00:01] [%clk 00:04:47]} Kg7 {[%emt 00:00:01] [%clk
00:03:31]} 37. Rd8 {[%emt 00:00:16] [%clk 00:04:41]} Bb3 {[%emt 00:00:17] [%clk
00:03:24]} 38. g5 {[%emt 00:00:45] [%clk 00:04:05]} h6 {[%emt 00:00:23] [%clk
00:03:12]} 39. gxh6+ {[%emt 00:00:06] [%clk 00:04:09]} Kxh6 {[%emt 00:00:02]
[%clk 00:03:19]} 40. Ng4+ {[%emt 00:00:07] [%clk 00:04:13]} Kg7 {[%emt 00:00:02]
[%clk 00:03:28]} 41. Kg3 {[%emt 00:00:17] [%clk 00:04:05]} g5 {[%emt 00:00:19]
[%clk 00:03:19]} 42. h4 {[%emt 00:00:09] [%clk 00:04:06]} gxh4+ {[%emt 00:00:15]
[%clk 00:03:14]} 43. Kxh4 {[%emt 00:00:01] [%clk 00:04:15]} Kg6 {[%emt 00:00:14]
[%clk 00:03:10]} 44. Kg3 {[%emt 00:00:40] [%clk 00:03:45]} Bd5 {[%emt 00:00:16]
[%clk 00:03:04]} 45. Kf2 {[%emt 00:00:35] [%clk 00:03:19]} Rf7+ {[%emt 00:00:28]
[%clk 00:02:47]} 46. Ke1 {[%emt 00:00:06] [%clk 00:03:22]} Rh7 {[%emt 00:00:30]
[%clk 00:02:28]} 47. Kd2 {[%emt 00:00:15] [%clk 00:03:17]} Kf5 {[%emt 00:00:19]
[%clk 00:02:18]} 48. Ne3+ {[%emt 00:00:30] [%clk 00:02:58]} Ke4 {[%emt 00:00:01]
[%clk 00:02:27]} 49. Re8+ {[%emt 00:00:39] [%clk 00:02:28]} Kd4 {[%emt 00:00:04]
[%clk 00:02:34]} 50. Nf5+ {[%emt 00:00:38] [%clk 00:02:00]} Kc4 {[%emt 00:00:16]
[%clk 00:02:28]} 51. Re3 {[%emt 00:00:02] [%clk 00:02:08]} Rh2+ {[%emt 00:00:05]
[%clk 00:02:33]} 52. Kc1 {[%emt 00:00:01] [%clk 00:02:17]} a5 {[%emt 00:00:34]
[%clk 00:02:09]} 53. Rc3+ {[%emt 00:00:47] [%clk 00:01:40]} Kb5 {[%clk
00:02:18]} 54. Nd4+ {[%emt 00:00:09] [%clk 00:01:40]} Kb6 {[%emt 00:00:11] [%clk
00:02:17]} 55. b4 {[%emt 00:00:42] [%clk 00:01:08]} a4 {[%emt 00:00:10] [%clk
00:02:18]} 56. Kb1 {[%emt 00:00:21] [%clk 00:00:57]} Rd2 {[%emt 00:00:02] [%clk
00:02:26]} 57. Nf3 {[%emt 00:00:07] [%clk 00:01:00]} Be4+ {[%emt 00:00:10] [%clk
00:02:26]} 58. Kc1 {[%emt 00:00:04] [%clk 00:01:07]} Rf2 {[%emt 00:00:21] [%clk
00:02:14]} 59. Ne5 {[%emt 00:00:09] [%clk 00:01:07]} Kc7 {[%emt 00:00:08] [%clk
00:02:17]} 60. b5 {[%emt 00:00:04] [%clk 00:01:13]} Rf5 {[%emt 00:01:30] [%clk
00:00:56]} 61. b6+ {[%emt 00:01:06] [%clk 00:00:18]} Kxb6 {[%emt 00:00:01] [%clk
00:01:05]} 62. Nc4+ {[%emt 00:00:07] [%clk 00:00:21]} Kc7 {[%emt 00:00:10] [%clk
00:01:05]} 63. Nd2 {[%emt 00:00:05] [%clk 00:00:26]} Bd5 {[%emt 00:00:03] [%clk
00:01:12]} 64. Rg3 {[%emt 00:00:02] [%clk 00:00:34]} b5 {[%emt 00:00:04] [%clk
00:01:18]} 65. Kc2 {[%emt 00:00:04] [%clk 00:00:40]} Kb6 {[%emt 00:00:01] [%clk
00:01:27]} 66. Kc3 {[%emt 00:00:02] [%clk 00:00:48]} Re5 {[%emt 00:00:08] [%clk
00:01:29]} 67. Nf1 {[%emt 00:00:08] [%clk 00:00:50]} Re1 {[%emt 00:00:04] [%clk
00:01:35]} 68. Ne3 {[%emt 00:00:01] [%clk 00:00:59]} Rb1 {[%emt 00:00:11] [%clk
00:01:34]} 69. Kd4 {[%emt 00:00:13] [%clk 00:00:56]} Rb3 {[%emt 00:00:13] [%clk
00:01:31]} 70. Rg6 {[%emt 00:00:05] [%clk 00:01:00]} Ka5 {[%emt 00:00:07] [%clk
00:01:34]} 71. Nc2 {[%emt 00:00:02] [%clk 00:01:09]} Rh3 {[%emt 00:00:50] [%clk
00:00:54]} 72. Rf6 {[%emt 00:00:23] [%clk 00:00:55]} Bh1 {[%emt 00:00:09] [%clk
00:00:56]} 73. Rf8 {[%emt 00:00:14] [%clk 00:00:51]} c5+ {[%emt 00:00:06] [%clk
00:01:00]} 74. Ke5 {[%emt 00:00:16] [%clk 00:00:45]} Rc3 {[%emt 00:00:01] [%clk
00:01:09]} 75. Rf2 {[%emt 00:00:08] [%clk 00:00:47]} Bb7 {[%emt 00:00:09] [%clk
00:01:10]} 76. Rh2 {[%emt 00:00:04] [%clk 00:00:52]} Bc6 {[%emt 00:00:10] [%clk
00:01:11]} 77. Rf2 {[%emt 00:00:03] [%clk 00:00:59]} Be8 {[%emt 00:00:04] [%clk
00:01:17]} 78. Kd6 {[%emt 00:00:19] [%clk 00:00:50]} Bg6 {[%emt 00:00:02] [%clk
00:01:25]} 79. Ne1 {[%emt 00:00:01] [%clk 00:00:59]} Rxa3 {[%emt 00:00:07] [%clk
00:01:29]} 80. Kxc5 {[%emt 00:00:01] [%clk 00:01:07]} Rc3 {[%emt 00:00:01] [%clk
00:01:37]} 81. Kd4 {[%emt 00:00:01] [%clk 00:01:16]} Rc4+ {[%clk 00:01:47]} 82.
Kd5 {[%clk 00:01:25]} a3 {[%emt 00:00:04] [%clk 00:01:53]} 83. Kd6 {[%emt
00:00:07] [%clk 00:01:28]} Be4 {[%emt 00:00:02] [%clk 00:02:01]} 0-1

[Site "Europe Echecs"]

[Event "Championnat d'Europe Rapide"]
[Date "2024.12.07"]
[White "Dardha, Daniel"]
[Black "Ghimpu, Samuel-Timotei"]
[WhiteElo "2639"]
[BlackElo "2475"]
[Round "4.22"]
[Result "1/2-1/2"]
[TimeControl "900+10"]

1. d4 {[%emt 00:00:16] [%clk 00:15:04]} Nf6 {[%emt 00:01:29] [%clk 00:13:52]} 2.
c4 {[%emt 00:00:04] [%clk 00:15:10]} e6 {[%emt 00:00:12] [%clk 00:13:49]} 3. Nc3
{[%emt 00:00:03] [%clk 00:15:17]} d5 {[%emt 00:00:11] [%clk 00:13:48]} 4. cxd5
{[%emt 00:00:04] [%clk 00:15:23]} Nxd5 {[%emt 00:00:03] [%clk 00:13:56]} 5. e4
{[%emt 00:00:05] [%clk 00:15:28]} Nxc3 {[%emt 00:00:03] [%clk 00:14:03]} 6. bxc3
{[%emt 00:00:02] [%clk 00:15:36]} c5 {[%emt 00:00:01] [%clk 00:14:11]} 7. a3
{[%emt 00:00:10] [%clk 00:15:36]} Be7 {[%emt 00:02:34] [%clk 00:11:48]} 8. Bd3
{[%emt 00:00:22] [%clk 00:15:24]} cxd4 {[%emt 00:01:59] [%clk 00:09:59]} 9. cxd4
{[%emt 00:00:02] [%clk 00:15:31]} b6 {[%emt 00:01:48] [%clk 00:08:22]} 10. Nf3
{[%emt 00:00:10] [%clk 00:15:30]} O-O {[%emt 00:00:20] [%clk 00:08:12]} 11. Qe2
{[%emt 00:00:16] [%clk 00:15:24]} a5 {[%emt 00:01:40] [%clk 00:06:43]} 12. O-O
{[%emt 00:00:23] [%clk 00:15:10]} Ba6 {[%emt 00:00:17] [%clk 00:06:37]} 13. Bxa6
{[%emt 00:00:04] [%clk 00:15:16]} Nxa6 {[%emt 00:00:02] [%clk 00:06:45]} 14. Be3
{[%emt 00:00:14] [%clk 00:15:11]} Nb8 {[%emt 00:00:17] [%clk 00:06:39]} 15. d5
{[%emt 00:02:10] [%clk 00:13:11]} exd5 {[%emt 00:00:31] [%clk 00:06:18]} 16.
Rfd1 {[%emt 00:00:02] [%clk 00:13:18]} Nd7 {[%emt 00:00:27] [%clk 00:06:01]} 17.
exd5 {[%emt 00:00:18] [%clk 00:13:11]} Bc5 {[%emt 00:00:40] [%clk 00:05:31]} 18.
Bxc5 {[%emt 00:01:01] [%clk 00:12:20]} Nxc5 {[%emt 00:00:04] [%clk 00:05:37]}
19. d6 {[%emt 00:00:36] [%clk 00:11:54]} Re8 {[%emt 00:01:14] [%clk 00:04:34]}
20. Qb5 {[%emt 00:00:42] [%clk 00:11:22]} Re6 {[%emt 00:00:22] [%clk 00:04:21]}
21. Qc6 {[%emt 00:01:31] [%clk 00:10:01]} Rc8 {[%emt 00:00:26] [%clk 00:04:05]}
22. Qd5 {[%emt 00:00:01] [%clk 00:10:09]} h6 {[%emt 00:00:47] [%clk 00:03:29]}
23. Ne5 {[%emt 00:03:43] [%clk 00:06:36]} Qg5 {[%emt 00:00:21] [%clk 00:03:18]}
24. Nc4 {[%emt 00:00:53] [%clk 00:05:52]} Qxd5 {[%emt 00:02:23] [%clk 00:01:06]}
25. Rxd5 {[%emt 00:00:01] [%clk 00:06:01]} Nd7 {[%emt 00:00:01] [%clk 00:01:15]}
26. Rd4 {[%emt 00:00:33] [%clk 00:05:37]} g6 {[%emt 00:00:47] [%clk 00:00:38]}
27. Rb1 {[%emt 00:00:36] [%clk 00:05:11]} Rc6 {[%emt 00:00:12] [%clk 00:00:37]}
28. g3 {[%emt 00:00:15] [%clk 00:05:06]} Kf8 {[%emt 00:00:25] [%clk 00:00:22]}
29. Kg2 {[%emt 00:00:09] [%clk 00:05:06]} h5 {[%emt 00:00:10] [%clk 00:00:22]}
30. h3 {[%emt 00:00:31] [%clk 00:04:45]} Re2 {[%emt 00:00:08] [%clk 00:00:24]}
31. Ne3 {[%emt 00:00:10] [%clk 00:04:45]} Ra2 {[%emt 00:00:19] [%clk 00:00:16]}
32. Rb3 {[%emt 00:00:19] [%clk 00:04:35]} Kg7 {[%emt 00:00:11] [%clk 00:00:16]}
33. Nc4 {[%emt 00:00:39] [%clk 00:04:06]} Rc2 {[%emt 00:00:08] [%clk 00:00:18]}
34. Nd2 {[%emt 00:00:38] [%clk 00:03:38]} R6c3 {[%emt 00:00:12] [%clk 00:00:16]}
35. Rxc3 {[%emt 00:00:04] [%clk 00:03:44]} Rxc3 {[%clk 00:00:25]} 36. Ne4 {[%emt
00:00:05] [%clk 00:03:49]} Rxa3 {[%emt 00:00:10] [%clk 00:00:25]} 37. Rc4 {[%emt
00:00:01] [%clk 00:03:57]} Rd3 {[%emt 00:00:09] [%clk 00:00:26]} 38. Rc7 {[%emt
00:00:12] [%clk 00:03:56]} Nc5 {[%emt 00:00:05] [%clk 00:00:31]} 39. Nxc5 {[%emt
00:00:33] [%clk 00:03:32]} bxc5 {[%emt 00:00:02] [%clk 00:00:40]} 40. Rxc5
{[%emt 00:00:02] [%clk 00:03:40]} Rxd6 {[%emt 00:00:10] [%clk 00:00:40]} 1/2-1/2

[Site "Europe Echecs"]

[Event "Championnat d'Europe Rapide"]
[Date "2024.12.07"]
[White "Grigoriants, Sergey"]
[Black "Hamitevici, Vladimir"]
[WhiteElo "2542"]
[BlackElo "2423"]
[Round "4.23"]
[Result "1/2-1/2"]
[TimeControl "900+10"]

1. e4 {[%emt 00:00:04] [%clk 00:15:15]} c5 {[%emt 00:00:16] [%clk 00:15:04]} 2.
Nf3 {[%emt 00:00:07] [%clk 00:15:18]} d6 {[%emt 00:00:02] [%clk 00:15:12]} 3.
Bb5+ {[%emt 00:00:16] [%clk 00:15:12]} Nd7 {[%emt 00:00:11] [%clk 00:15:11]} 4.
c3 {[%emt 00:00:12] [%clk 00:15:10]} Ngf6 {[%emt 00:01:57] [%clk 00:13:24]} 5.
Bd3 {[%emt 00:00:07] [%clk 00:15:13]} Ne5 {[%emt 00:00:35] [%clk 00:12:59]} 6.
Bc2 {[%emt 00:06:16] [%clk 00:09:08]} Nxf3+ {[%emt 00:02:38] [%clk 00:10:30]} 7.
Qxf3 {[%emt 00:00:03] [%clk 00:09:15]} e5 {[%emt 00:00:01] [%clk 00:10:39]} 8.
Ba4+ {[%emt 00:01:18] [%clk 00:08:07]} Bd7 {[%emt 00:00:10] [%clk 00:10:38]} 9.
Bxd7+ {[%emt 00:00:04] [%clk 00:08:14]} Qxd7 {[%emt 00:00:05] [%clk 00:10:43]}
10. d3 {[%emt 00:02:00] [%clk 00:06:25]} Be7 {[%emt 00:00:21] [%clk 00:10:32]}
11. c4 {[%emt 00:00:02] [%clk 00:06:33]} Bd8 {[%emt 00:00:47] [%clk 00:09:54]}
12. O-O {[%emt 00:00:27] [%clk 00:06:17]} O-O {[%emt 00:00:17] [%clk 00:09:46]}
13. Nc3 {[%emt 00:00:02] [%clk 00:06:25]} Ba5 {[%emt 00:00:44] [%clk 00:09:13]}
14. Ne2 {[%emt 00:00:36] [%clk 00:05:58]} Qg4 {[%emt 00:01:47] [%clk 00:07:35]}
15. Qe3 {[%emt 00:00:30] [%clk 00:05:39]} Ne8 {[%emt 00:00:34] [%clk 00:07:12]}
16. f4 {[%emt 00:00:45] [%clk 00:05:04]} f5 {[%emt 00:00:54] [%clk 00:06:27]}
17. h3 {[%emt 00:01:14] [%clk 00:04:00]} Qg6 {[%emt 00:00:08] [%clk 00:06:29]}
18. fxe5 {[%emt 00:00:17] [%clk 00:03:54]} dxe5 {[%emt 00:00:35] [%clk
00:06:04]} 19. exf5 {[%emt 00:00:07] [%clk 00:03:57]} Rxf5 {[%emt 00:00:05]
[%clk 00:06:08]} 20. Rxf5 {[%clk 00:03:58]} Qxf5 {[%emt 00:00:11] [%clk
00:06:16]} 21. Ng3 {[%emt 00:00:05] [%clk 00:04:03]} Qe6 {[%emt 00:00:22] [%clk
00:06:04]} 22. Bd2 {[%emt 00:01:38] [%clk 00:02:36]} Bxd2 {[%emt 00:00:18] [%clk
00:05:56]} 23. Qxd2 {[%emt 00:00:02] [%clk 00:02:44]} Rd8 {[%emt 00:00:38] [%clk
00:05:27]} 24. Re1 {[%emt 00:00:23] [%clk 00:02:31]} Qxc4 {[%emt 00:00:31] [%clk
00:05:06]} 25. dxc4 {[%emt 00:00:50] [%clk 00:01:52]} Rxd2 {[%emt 00:00:02]
[%clk 00:05:14]} 26. Rxe5 {[%emt 00:00:02] [%clk 00:02:00]} Kf8 {[%emt 00:00:54]
[%clk 00:04:29]} 27. Rf5+ {[%emt 00:01:02] [%clk 00:01:09]} Ke7 {[%emt 00:00:20]
[%clk 00:04:18]} 28. Rf2 {[%emt 00:00:04] [%clk 00:01:15]} 1/2-1/2

[Site "Europe Echecs"]

[Event "Championnat d'Europe Rapide"]
[Date "2024.12.07"]
[White "Stanojoski, Zvonko"]
[Black "Grigorov, Grigor"]
[WhiteElo "2401"]
[BlackElo "2497"]
[Round "4.24"]
[Result "1/2-1/2"]
[TimeControl "900+10"]

1. e4 {[%emt 00:00:05] [%clk 00:15:14]} c6 {[%emt 00:00:03] [%clk 00:15:18]} 2.
d4 {[%emt 00:00:04] [%clk 00:15:20]} d5 {[%emt 00:00:02] [%clk 00:15:26]} 3.
exd5 {[%emt 00:00:02] [%clk 00:15:27]} cxd5 {[%emt 00:00:03] [%clk 00:15:34]} 4.
Bd3 {[%emt 00:00:02] [%clk 00:15:35]} Nc6 {[%emt 00:00:03] [%clk 00:15:40]} 5.
c3 {[%emt 00:00:02] [%clk 00:15:43]} e5 {[%emt 00:00:03] [%clk 00:15:48]} 6.
dxe5 {[%emt 00:00:11] [%clk 00:15:42]} Nxe5 {[%emt 00:00:02] [%clk 00:15:55]} 7.
Nf3 {[%emt 00:00:05] [%clk 00:15:48]} Nxd3+ {[%emt 00:00:17] [%clk 00:15:48]} 8.
Qxd3 {[%emt 00:00:02] [%clk 00:15:56]} Bd6 {[%emt 00:00:29] [%clk 00:15:28]} 9.
O-O {[%emt 00:00:08] [%clk 00:15:59]} Ne7 {[%emt 00:00:02] [%clk 00:15:35]} 10.
Bg5 {[%emt 00:00:13] [%clk 00:15:56]} O-O {[%emt 00:00:47] [%clk 00:14:59]} 11.
Bxe7 {[%emt 00:00:38] [%clk 00:15:28]} Bxe7 {[%emt 00:00:02] [%clk 00:15:06]}
12. Nbd2 {[%emt 00:00:05] [%clk 00:15:34]} Qb6 {[%emt 00:01:05] [%clk 00:14:10]}
13. Nb3 {[%emt 00:00:52] [%clk 00:14:52]} a5 {[%emt 00:00:14] [%clk 00:14:06]}
14. Rfe1 {[%emt 00:00:39] [%clk 00:14:23]} Bf6 {[%emt 00:00:06] [%clk 00:14:10]}
15. Re2 {[%emt 00:00:03] [%clk 00:14:30]} a4 {[%emt 00:00:49] [%clk 00:13:31]}
16. Nbd4 {[%emt 00:00:03] [%clk 00:14:37]} Bg4 {[%emt 00:00:31] [%clk 00:13:11]}
17. Rd2 {[%emt 00:00:54] [%clk 00:13:53]} Rfe8 {[%emt 00:00:20] [%clk 00:13:01]}
18. a3 {[%emt 00:00:21] [%clk 00:13:42]} Rad8 {[%emt 00:03:55] [%clk 00:09:16]}
19. h3 {[%emt 00:00:30] [%clk 00:13:22]} Bh5 {[%emt 00:00:35] [%clk 00:08:50]}
20. Qb5 {[%emt 00:00:41] [%clk 00:12:50]} Qa7 {[%emt 00:00:27] [%clk 00:08:35]}
21. Re1 {[%emt 00:01:30] [%clk 00:11:29]} Rxe1+ {[%emt 00:01:07] [%clk
00:07:38]} 22. Nxe1 {[%emt 00:00:03] [%clk 00:11:36]} Bg5 {[%emt 00:00:10] [%clk
00:07:38]} 23. Rd3 {[%emt 00:00:05] [%clk 00:11:41]} Bg6 {[%emt 00:00:06] [%clk
00:07:42]} 24. Rd1 {[%emt 00:00:30] [%clk 00:11:21]} Bf6 {[%emt 00:00:28] [%clk
00:07:24]} 25. Nec2 {[%emt 00:01:10] [%clk 00:10:21]} h6 {[%emt 00:02:20] [%clk
00:05:14]} 26. Nb4 {[%emt 00:00:48] [%clk 00:09:43]} Bh5 {[%emt 00:00:25] [%clk
00:04:58]} 27. g4 {[%emt 00:00:26] [%clk 00:09:27]} Bg6 {[%emt 00:00:01] [%clk
00:05:07]} 28. Nxd5 {[%emt 00:00:07] [%clk 00:09:29]} Bh4 {[%emt 00:00:05] [%clk
00:05:11]} 29. Re1 {[%emt 00:00:26] [%clk 00:09:14]} Kh7 {[%emt 00:00:42] [%clk
00:04:40]} 30. Re8 {[%emt 00:01:31] [%clk 00:07:52]} Qb8 {[%emt 00:01:07] [%clk
00:03:43]} 31. Rxd8 {[%emt 00:00:03] [%clk 00:07:59]} Qxd8 {[%emt 00:00:01]
[%clk 00:03:52]} 32. Qxb7 {[%emt 00:00:36] [%clk 00:07:33]} Bd3 {[%emt 00:00:52]
[%clk 00:03:10]} 33. Nf4 {[%emt 00:00:08] [%clk 00:07:35]} Bc4 {[%emt 00:00:35]
[%clk 00:02:45]} 34. Qe4+ {[%emt 00:00:06] [%clk 00:07:39]} Kg8 {[%emt 00:00:20]
[%clk 00:02:35]} 35. Ng2 {[%emt 00:00:58] [%clk 00:06:52]} Bg5 {[%emt 00:00:33]
[%clk 00:02:12]} 36. Ne3 {[%emt 00:00:04] [%clk 00:06:58]} Ba6 {[%emt 00:00:24]
[%clk 00:01:56]} 37. Nef5 {[%emt 00:00:18] [%clk 00:06:51]} g6 {[%emt 00:00:15]
[%clk 00:01:51]} 38. Ne3 {[%emt 00:00:14] [%clk 00:06:48]} Qb8 {[%emt 00:00:14]
[%clk 00:01:47]} 39. Nd1 {[%emt 00:01:25] [%clk 00:05:33]} Bb7 {[%emt 00:00:07]
[%clk 00:01:50]} 40. Qe2 {[%emt 00:00:40] [%clk 00:05:04]} Qd8 {[%emt 00:00:25]
[%clk 00:01:34]} 41. Qe5 {[%emt 00:00:14] [%clk 00:04:59]} Bf6 {[%emt 00:00:22]
[%clk 00:01:22]} 42. Qb5 {[%emt 00:01:35] [%clk 00:03:34]} Qe7 {[%emt 00:00:07]
[%clk 00:01:25]} 43. Qe2 {[%emt 00:00:13] [%clk 00:03:30]} Qd7 {[%emt 00:00:42]
[%clk 00:00:55]} 44. Ne3 {[%emt 00:00:10] [%clk 00:03:31]} Bxd4 {[%emt 00:00:25]
[%clk 00:00:39]} 45. cxd4 {[%emt 00:00:02] [%clk 00:03:38]} Qxd4 {[%emt
00:00:01] [%clk 00:00:48]} 46. Qc2 {[%emt 00:00:34] [%clk 00:03:15]} Qf6 {[%emt
00:00:15] [%clk 00:00:42]} 47. Kf1 {[%emt 00:01:06] [%clk 00:02:19]} Ba6+ {[%emt
00:00:10] [%clk 00:00:43]} 48. Ke1 {[%emt 00:00:02] [%clk 00:02:27]} Qf3 {[%emt
00:00:06] [%clk 00:00:45]} 49. h4 {[%emt 00:00:31] [%clk 00:02:08]} Qh1+ {[%emt
00:00:06] [%clk 00:00:49]} 50. Kd2 {[%emt 00:00:01] [%clk 00:02:17]} Qxh4 {[%emt
00:00:02] [%clk 00:00:57]} 51. Kc3 {[%emt 00:00:13]} Qf6+ {[%emt 00:00:10] [%clk
00:00:55]} 52. Kb4 {[%emt 00:00:02] [%clk 00:02:24]} Qb6+ {[%emt 00:00:16] [%clk
00:00:48]} 53. Kc3 {[%clk 00:02:34]} Qc5+ {[%emt 00:00:10] [%clk 00:00:48]} 54.
Kd2 {[%emt 00:00:01] [%clk 00:02:42]} Qd4+ {[%emt 00:00:06] [%clk 00:00:53]} 55.
Kc1 {[%emt 00:00:10] [%clk 00:02:42]} Qf4 {[%emt 00:00:20] [%clk 00:00:42]} 56.
Qd2 {[%emt 00:00:06] [%clk 00:02:46]} h5 {[%emt 00:00:22] [%clk 00:00:30]} 57.
gxh5 {[%emt 00:00:04] [%clk 00:02:52]} gxh5 {[%emt 00:00:02] [%clk 00:00:39]}
58. Qa5 {[%emt 00:00:12] [%clk 00:02:50]} Be2 {[%emt 00:00:13] [%clk 00:00:35]}
59. Qf5 {[%emt 00:01:05] [%clk 00:01:53]} Qxf5 {[%emt 00:00:25] [%clk 00:00:22]}
60. Nxf5 {[%emt 00:00:01] [%clk 00:02:02]} Bd3 {[%emt 00:00:10] [%clk 00:00:23]}
61. Nh4 {[%emt 00:00:07] [%clk 00:02:05]} Kg7 {[%emt 00:00:08] [%clk 00:00:25]}
62. Kd2 {[%emt 00:00:01] [%clk 00:02:14]} Bb5 {[%emt 00:00:09] [%clk 00:00:25]}
63. Kc3 {[%emt 00:00:02] [%clk 00:02:23]} Kf6 {[%emt 00:00:03] [%clk 00:00:32]}
64. f4 {[%emt 00:00:01] [%clk 00:02:32]} Be2 {[%emt 00:00:04] [%clk 00:00:37]}
65. b3 {[%emt 00:00:02] [%clk 00:02:40]} axb3 {[%emt 00:00:03] [%clk 00:00:44]}
66. Kxb3 {[%emt 00:00:01] [%clk 00:02:50]} Ke6 {[%clk 00:00:53]} 67. Kc3 {[%emt
00:00:03] [%clk 00:02:57]} Kd5 {[%emt 00:00:03] [%clk 00:01:00]} 68. Kd2 {[%emt
00:00:02] [%clk 00:03:06]} Bg4 {[%emt 00:00:04] [%clk 00:01:04]} 69. Ke3 {[%clk
00:03:15]} Bd7 {[%emt 00:00:07] [%clk 00:01:09]} 70. Nf3 {[%emt 00:00:24] [%clk
00:03:02]} f6 {[%emt 00:00:07] [%clk 00:01:11]} 71. Nh4 {[%emt 00:00:08] [%clk
00:03:05]} Bc6 {[%emt 00:00:13] [%clk 00:01:06]} 72. Kd3 {[%emt 00:00:04] [%clk
00:03:13]} Bb5+ {[%emt 00:00:07] [%clk 00:01:10]} 73. Ke3 {[%emt 00:00:01] [%clk
00:03:22]} Bd7 {[%emt 00:00:02] [%clk 00:01:17]} 74. Kd3 {[%emt 00:00:01] [%clk
00:03:30]} Bc8 {[%emt 00:00:13] [%clk 00:01:14]} 1/2-1/2

[Site "Europe Echecs"]